fUST/lending_fUST_20250604
["ID","MTS","AMOUNT","RATE_DAILY","PERIOD"]
[364233819,1749046263594,-885.05,0.000239,7]
[364233821,1749046263604,-162.768674,0.000239,7]
[364233823,1749046263614,-15500.0,0.000239,7]
[364233825,1749046263624,-615.68,0.00023919,3]
[364233827,1749046263634,-800.0,0.00023925,2]
[364233829,1749046263644,-5255.561189,0.00023934,10]
[364233831,1749046263654,-216.9712955,0.00023973,2]
[364233834,1749046263664,-261525.49709515,0.00024,2]
[364233835,1749046263674,-5064.48421098,0.00024,2]
[364233838,1749046263689,-505.58019409,0.00024,2]
[364233840,1749046263873,-4429.93559493,0.00024,2]
[364233842,1749046263884,-2000.000001,0.00024,2]
[364233844,1749046263895,-229.45591648,0.00024,7]
[364233846,1749046263904,-1000.0,0.00024,24]
[364233848,1749046263915,-206.0,0.00024,2]
[364233850,1749046263925,-152.155345,0.00024,7]
[364233852,1749046263935,-151.0,0.00024,7]
[364233854,1749046263945,-151.0,0.00024,7]
[364233856,1749046263955,-151.0,0.00024,7]
[364233858,1749046263965,-151.0,0.00024,2]
[364233860,1749046263976,-1344.78,0.00024,2]
[364233862,1749046263986,-151.0,0.00024,7]
[364233864,1749046263996,-151.0,0.00024,7]
[364233866,1749046264006,-158.261927,0.00024,7]
[364233868,1749046264017,-158.261927,0.00024,7]
[364233870,1749046264027,-423.69433488,0.00024,7]
[364233872,1749046264037,-160.0,0.00024,7]
[364233874,1749046264047,-151.0,0.00024,7]
[364233876,1749046264057,-273.881437,0.00024,7]
[364233878,1749046264067,-273.881437,0.00024,7]
[364233880,1749046264077,-151.0,0.00024,7]
[364233882,1749046264089,-197.252444,0.00024,7]
[364233884,1749046264099,-197.252444,0.00024,7]
[364233886,1749046264108,-324.596827,0.00024,7]
[364233888,1749046264118,-324.596827,0.00024,7]
[364233890,1749046264129,-413.65690505,0.00024,2]
[364233892,1749046264139,-158.15,0.00024,2]
[364233894,1749046264151,-500.0,0.00024,2]
[364233896,1749046264161,-160.0,0.00024,7]
[364233898,1749046264171,-229.45591648,0.00024,7]
[364233900,1749046264182,-775.70439603,0.00024037,2]
[364233902,1749046264191,-151.0,0.00024037,7]
[364233904,1749046264201,-151.0,0.00024037,7]
[364233906,1749046264211,-151.0,0.00024037,7]
[364233908,1749046264221,-151.0,0.00024037,7]
[364233910,1749046264233,-151.0,0.00024037,7]
[364233912,1749046264243,-309.560023,0.00024037,7]
[364233913,1749046264253,-309.560023,0.00024037,7]
[364233916,1749046264263,-606.756285,0.00024037,7]
[364233917,1749046264273,-606.756285,0.00024037,7]
[364233919,1749046264283,-151.0,0.00024037,7]
[364233921,1749046264292,-151.0,0.00024037,7]
[364233923,1749046264301,-151.0,0.00024037,7]
[364233925,1749046264313,-223.703223,0.00024037,7]
[364233927,1749046264323,-151.0,0.00024037,7]
[364233929,1749046264333,-223.703223,0.00024037,7]
[364233931,1749046264347,-2553.74923471,0.00024053,2]
[364233934,1749046264362,-2446.25076529,0.00024053,2]
[364233936,1749046264372,-216.9712955,0.00024082,2]
[364233938,1749046264384,-1017.2939498,0.00024096,2]
[364233940,1749046264394,-235.80842164,0.00024096,2]
[364233942,1749046264403,-1532.43080558,0.000241,2]
[364233944,1749046264418,-257.211118,0.000241,2]
[364236290,1749046290050,1002.11898737,0.00025,30]
[364238820,1749046324005,50000.0,0.00025,60]
[364239465,1749046741112,168.151219,0.00013699,2]
[364239516,1749047185863,169.40272109,0.00024156,120]
[364239568,1749047321079,806.20708242,0.00014,30]
[364239615,1749047433031,-243.825962,0.00015766,2]
[364239616,1749047433042,-187.15823103,0.00015945,2]
[364239617,1749047433052,-423.74812265,0.00016338,2]
[364239618,1749047433062,-157.20561446,0.00016338,2]
[364239619,1749047433073,-300.0,0.00016437,2]
[364239620,1749047433083,-300.0,0.00016437,2]
[364239621,1749047433092,-300.0,0.00016437,2]
[364239622,1749047433103,-300.0,0.00016437,2]
[364239623,1749047433113,-1200.0,0.00016437,2]
[364239624,1749047433123,-440.0,0.00016438,2]
[364239625,1749047433134,-430.0,0.00016438,2]
[364239626,1749047433143,-440.0,0.00016438,2]
[364239627,1749047433153,-440.0,0.00016438,2]
[364239628,1749047433163,-440.0,0.00016438,2]
[364239629,1749047433173,-440.0,0.00016438,2]
[364239630,1749047433184,-440.0,0.00016438,2]
[364239631,1749047433194,-403.67696952,0.00016438,2]
[364239632,1749047433205,-440.0,0.00016438,2]
[364239633,1749047433215,-440.0,0.00016438,2]
[364239634,1749047433226,-440.0,0.00016438,2]
[364239635,1749047433236,-190.94395778,0.00016438,2]
[364239636,1749047433247,-163.04496613,0.00016438,2]
[364239637,1749047433257,-440.0,0.00016438,2]
[364239638,1749047433267,-440.0,0.00016438,2]
[364239639,1749047433278,-423.49058654,0.00016438,2]
[364239640,1749047433288,-440.0,0.00016438,2]
[364239641,1749047433298,-430.0,0.00016438,2]
[364239642,1749047433308,-400.0,0.00016438,2]
[364239643,1749047433318,-572.58483918,0.00016438,2]
[364239644,1749047433328,-394.83458103,0.00016438,2]
[364239645,1749047433338,-430.0,0.00016438,2]
[364239646,1749047433349,-410.0,0.00016438,2]
[364239647,1749047433359,-440.0,0.00016438,2]
[364239648,1749047433369,-440.0,0.00016438,2]
[364239649,1749047433380,-430.0,0.00016438,2]
[364239650,1749047433390,-492.54283803,0.00016438,2]
[364239651,1749047433400,-440.0,0.00016438,2]
[364239652,1749047433410,-440.0,0.00016438,2]
[364239653,1749047433420,-496.88159365,0.00016438,2]
[364239654,1749047433430,-430.0,0.00016438,2]
[364239655,1749047433440,-491.38910983,0.00016438,2]
[364239656,1749047433450,-440.0,0.00016438,2]
[364239657,1749047433460,-440.0,0.00016438,2]
[364239658,1749047433470,-430.0,0.00016438,2]
[364239659,1749047433481,-430.0,0.00016438,2]
[364239660,1749047433490,-440.0,0.00016438,2]
[364239661,1749047433500,-440.0,0.00016438,2]
[364239662,1749047433510,-440.0,0.00016438,2]
[364239663,1749047433521,-430.0,0.00016438,2]
[364239664,1749047433531,-440.0,0.00016438,2]
[364239665,1749047433541,-430.0,0.00016438,2]
[364239666,1749047433551,-440.0,0.00016438,2]
[364239667,1749047433561,-430.0,0.00016438,2]
[364239668,1749047433571,-440.0,0.00016438,2]
[364239669,1749047433581,-440.0,0.00016438,2]
[364239670,1749047433591,-430.0,0.00016438,2]
[364239671,1749047433601,-216.10129984,0.00016438,2]
[364239672,1749047433611,-440.0,0.00016438,2]
[364239673,1749047433620,-431.5140174,0.00016438,2]
[364239674,1749047433630,-440.0,0.00016438,2]
[364239675,1749047433640,-430.0,0.00016438,2]
[364239676,1749047433654,-302.42575276,0.00016438,2]
[364239677,1749047433663,-362.76924559,0.00016438,2]
[364239678,1749047433673,-430.0,0.00016438,2]
[364239679,1749047433684,-440.0,0.00016438,2]
[364239680,1749047433695,-430.0,0.00016438,2]
[364239681,1749047433705,-430.0,0.00016438,2]
[364239682,1749047433716,-430.0,0.00016438,2]
[364239683,1749047433727,-290.29677932,0.00016438,2]
[364239684,1749047433736,-430.0,0.00016438,2]
[364239685,1749047433746,-430.0,0.00016438,2]
[364239686,1749047433756,-430.0,0.00016438,2]
[364239687,1749047433766,-440.0,0.00016438,2]
[364239688,1749047433776,-440.0,0.00016438,2]
[364239689,1749047433787,-1036.53709069,0.00016438,2]
[364239690,1749047433797,-430.0,0.00016438,2]
[364239691,1749047433807,-354.94312132,0.00016438,2]
[364239692,1749047433818,-430.0,0.00016438,2]
[364239693,1749047433827,-430.0,0.00016438,2]
[364239694,1749047433837,-546.59860463,0.00016438,2]
[364239695,1749047433847,-430.0,0.00016438,2]
[364239696,1749047433857,-258.17688479,0.00016438,2]
[364239697,1749047433867,-440.0,0.00016438,2]
[364239698,1749047433877,-500.24903475,0.00016438,2]
[364239699,1749047433887,-466.81032424,0.00016438,2]
[364239700,1749047433897,-516.98823777,0.00016438,2]
[364239701,1749047433906,-430.0,0.00016438,2]
[364239702,1749047433916,-430.0,0.00016438,2]
[364239703,1749047433925,-430.0,0.00016438,2]
[364239704,1749047433935,-430.0,0.00016438,2]
[364239705,1749047433945,-430.0,0.00016438,2]
[364239706,1749047433954,-430.0,0.00016438,2]
[364239707,1749047433965,-440.0,0.00016438,2]
[364239708,1749047433975,-430.0,0.00016438,2]
[364239709,1749047433984,-430.0,0.00016438,2]
[364239710,1749047433994,-430.0,0.00016438,2]
[364239711,1749047434005,-234.31647222,0.00016438,2]
[364239712,1749047434014,-430.0,0.00016438,2]
[364239713,1749047434024,-430.0,0.00016438,2]
[364239714,1749047434033,-430.0,0.00016438,2]
[364239715,1749047434044,-400.0,0.00016438,2]
[364239716,1749047434054,-430.0,0.00016438,2]
[364239717,1749047434063,-430.0,0.00016438,2]
[364239718,1749047434073,-430.0,0.00016438,2]
[364239719,1749047434084,-440.0,0.00016438,2]
[364239720,1749047434094,-430.0,0.00016438,2]
[364239721,1749047434103,-430.0,0.00016438,2]
[364239722,1749047434114,-430.0,0.00016438,2]
[364239723,1749047434124,-430.0,0.00016438,2]
[364239724,1749047434135,-430.0,0.00016438,2]
[364239725,1749047434144,-430.0,0.00016438,2]
[364239726,1749047434154,-430.0,0.00016438,2]
[364239727,1749047434164,-440.0,0.00016438,2]
[364239728,1749047434174,-440.0,0.00016438,2]
[364239729,1749047434184,-430.0,0.00016438,2]
[364239730,1749047434194,-430.0,0.00016438,2]
[364239731,1749047434203,-430.0,0.00016438,2]
[364239732,1749047434213,-440.0,0.00016438,2]
[364239733,1749047434223,-440.0,0.00016438,2]
[364239734,1749047434233,-440.0,0.00016438,2]
[364239735,1749047434243,-430.0,0.00016438,2]
[364239736,1749047434253,-430.0,0.00016438,2]
[364239737,1749047434263,-430.0,0.00016438,2]
[364239738,1749047434274,-405.12001318,0.00016438,2]
[364239739,1749047434284,-440.0,0.00016438,2]
[364239740,1749047434294,-430.0,0.00016438,2]
[364239741,1749047434304,-430.0,0.00016438,2]
[364239742,1749047434314,-430.0,0.00016438,2]
[364239743,1749047434324,-430.0,0.00016438,2]
[364239744,1749047434334,-186.62750852,0.00016438,2]
[364239745,1749047434344,-440.0,0.00016438,2]
[364239746,1749047434354,-378.41339351,0.00016438,2]
[364239747,1749047434364,-430.0,0.00016438,2]
[364239748,1749047434374,-430.0,0.00016438,2]
[364239749,1749047434384,-430.0,0.00016438,2]
[364239750,1749047434395,-440.0,0.00016438,2]
[364239751,1749047434406,-440.0,0.00016438,2]
[364239752,1749047434416,-503.30978917,0.00016438,2]
[364239753,1749047434425,-430.0,0.00016438,2]
[364239754,1749047434435,-228.13849746,0.00016438,2]
[364239755,1749047434445,-430.0,0.00016438,2]
[364239756,1749047434455,-440.0,0.00016438,2]
[364239757,1749047434464,-433.23789947,0.00016438,2]
[364239758,1749047434474,-430.0,0.00016438,2]
[364239759,1749047434484,-430.0,0.00016438,2]
[364239760,1749047434493,-430.0,0.00016438,2]
[364239761,1749047434503,-430.0,0.00016438,2]
[364239762,1749047434513,-432.20325355,0.00016438,2]
[364239763,1749047434523,-430.0,0.00016438,2]
[364239764,1749047434533,-430.0,0.00016438,2]
[364239765,1749047434543,-430.0,0.00016438,2]
[364239766,1749047434553,-431.34582552,0.00016438,2]
[364239767,1749047434563,-440.0,0.00016438,2]
[364239768,1749047434573,-440.0,0.00016438,2]
[364239769,1749047434582,-430.0,0.00016438,2]
[364239770,1749047434592,-440.0,0.00016438,2]
[364239771,1749047434602,-440.0,0.00016438,2]
[364239772,1749047434612,-463.83571368,0.00016438,2]
[364239773,1749047434622,-440.0,0.00016438,2]
[364239774,1749047434632,-430.0,0.00016438,2]
[364239775,1749047434643,-430.0,0.00016438,2]
[364239776,1749047434657,-324.08426758,0.00016438,2]
[364239777,1749047434667,-440.0,0.00016438,2]
[364239778,1749047434676,-430.0,0.00016438,2]
[364239779,1749047434686,-430.0,0.00016438,2]
[364239780,1749047434697,-430.0,0.00016438,2]
[364239781,1749047434706,-430.0,0.00016438,2]
[364239782,1749047434717,-440.0,0.00016438,2]
[364239783,1749047434727,-430.0,0.00016438,2]
[364239784,1749047434736,-430.0,0.00016438,2]
[364239785,1749047434745,-480.84309947,0.00016438,2]
[364239786,1749047434755,-443.29796107,0.00016438,2]
[364239787,1749047434764,-440.0,0.00016438,2]
[364239788,1749047434774,-431.01496524,0.00016438,2]
[364239789,1749047434783,-430.0,0.00016438,2]
[364239790,1749047434792,-440.0,0.00016438,2]
[364239791,1749047434802,-430.0,0.00016438,2]
[364239792,1749047434811,-440.0,0.00016438,2]
[364239793,1749047434821,-430.0,0.00016438,2]
[364239794,1749047434831,-430.0,0.00016438,2]
[364239795,1749047434841,-500.0,0.00016438,2]
[364239796,1749047434851,-440.0,0.00016438,2]
[364239797,1749047434862,-430.0,0.00016438,2]
[364239798,1749047434872,-430.0,0.00016438,2]
[364239799,1749047434884,-410.27780625,0.00016438,2]
[364239800,1749047434894,-440.0,0.00016438,2]
[364239801,1749047434904,-440.0,0.00016438,2]
[364239802,1749047435015,-519.85161725,0.00016438,2]
[364239803,1749047435026,-430.0,0.00016438,2]
[364239804,1749047435036,-440.0,0.00016438,2]
[364239805,1749047435047,-449.35205607,0.00016438,2]
[364239806,1749047435056,-430.0,0.00016438,2]
[364239807,1749047435066,-415.8526449,0.00016438,2]
[364239808,1749047435075,-430.0,0.00016438,2]
[364239809,1749047435085,-430.0,0.00016438,2]
[364239810,1749047435095,-430.0,0.00016438,2]
[364239811,1749047435105,-430.0,0.00016438,2]
[364239812,1749047435115,-430.0,0.00016438,2]
[364239813,1749047435125,-430.0,0.00016438,2]
[364239814,1749047435135,-430.0,0.00016438,2]
[364239815,1749047435145,-507.09752724,0.00016438,2]
[364239816,1749047435154,-430.0,0.00016438,2]
[364239817,1749047435164,-163.98,0.00016438,2]
[364239818,1749047435174,-440.0,0.00016438,2]
[364239819,1749047435183,-430.0,0.00016438,2]
[364239820,1749047435193,-430.0,0.00016438,2]
[364239821,1749047435202,-430.0,0.00016438,2]
[364239822,1749047435212,-374.58496986,0.00016438,2]
[364239823,1749047435221,-430.0,0.00016438,2]
[364239824,1749047435230,-430.0,0.00016438,2]
[364239825,1749047435240,-440.0,0.00016438,2]
[364239826,1749047435249,-440.0,0.00016438,2]
[364239827,1749047435259,-432.58492878,0.00016438,2]
[364239828,1749047435268,-430.0,0.00016438,2]
[364239829,1749047435278,-430.0,0.00016438,2]
[364239830,1749047435287,-431.70422425,0.00016438,2]
[364239831,1749047435298,-430.0,0.00016438,2]
[364239832,1749047435307,-333.27380069,0.00016438,2]
[364239833,1749047435317,-430.0,0.00016438,2]
[364239834,1749047435326,-430.0,0.00016438,2]
[364239835,1749047435336,-430.0,0.00016438,2]
[364239836,1749047435346,-430.0,0.00016438,2]
[364239837,1749047435356,-430.0,0.00016438,2]
[364239838,1749047435365,-486.73730433,0.00016438,2]
[364239839,1749047435374,-440.0,0.00016438,2]
[364239840,1749047435385,-430.0,0.00016438,2]
[364239841,1749047435395,-430.0,0.00016438,2]
[364239842,1749047435405,-341.82857862,0.00016438,2]
[364239843,1749047435414,-375.86035573,0.00016438,2]
[364239844,1749047435426,-430.0,0.00016438,2]
[364239845,1749047435435,-440.0,0.00016438,2]
[364239846,1749047435444,-430.0,0.00016438,2]
[364239847,1749047435453,-430.0,0.00016438,2]
[364239848,1749047435462,-430.0,0.00016438,2]
[364239849,1749047435472,-430.0,0.00016438,2]
[364239850,1749047435481,-430.0,0.00016438,2]
[364239851,1749047435490,-430.0,0.00016438,2]
[364239852,1749047435499,-432.04122031,0.00016438,2]
[364239853,1749047435508,-430.0,0.00016438,2]
[364239854,1749047435517,-430.0,0.00016438,2]
[364239855,1749047435526,-430.0,0.00016438,2]
[364239856,1749047435534,-430.0,0.00016438,2]
[364239857,1749047435543,-395.56512391,0.00016438,2]
[364239858,1749047435552,-430.0,0.00016438,2]
[364239859,1749047435561,-440.0,0.00016438,2]
[364239860,1749047435570,-430.0,0.00016438,2]
[364239861,1749047435578,-430.0,0.00016438,2]
[364239862,1749047435587,-430.0,0.00016438,2]
[364239863,1749047435595,-430.0,0.00016438,2]
[364239864,1749047435603,-430.0,0.00016438,2]
[364239865,1749047435612,-440.0,0.00016438,2]
[364239866,1749047435619,-430.0,0.00016438,2]
[364239867,1749047435628,-430.0,0.00016438,2]
[364239868,1749047435636,-430.0,0.00016438,2]
[364239869,1749047435647,-430.0,0.00016438,2]
[364239870,1749047435659,-430.0,0.00016438,2]
[364239871,1749047435669,-430.0,0.00016438,2]
[364239872,1749047435679,-430.0,0.00016438,2]
[364239873,1749047435690,-440.0,0.00016438,2]
[364239874,1749047435700,-430.0,0.00016438,2]
[364239875,1749047435710,-373.12966969,0.00016438,2]
[364239876,1749047435719,-434.90584678,0.00016438,2]
[364239877,1749047435731,-430.0,0.00016438,2]
[364239878,1749047435741,-440.0,0.00016438,2]
[364239879,1749047435751,-443.85118614,0.00016438,2]
[364239880,1749047435760,-400.0,0.00016438,2]
[364239881,1749047435771,-402.1148411,0.00016438,2]
[364239882,1749047435781,-373.33719584,0.00016438,2]
[364239883,1749047435792,-430.0,0.00016438,2]
[364239884,1749047435802,-430.0,0.00016438,2]
[364239885,1749047435811,-440.0,0.00016438,2]
[364239886,1749047435820,-440.0,0.00016438,2]
[364239887,1749047435831,-430.0,0.00016438,2]
[364239888,1749047435840,-440.0,0.00016438,2]
[364239889,1749047435850,-430.0,0.00016438,2]
[364239890,1749047435859,-440.0,0.00016438,2]
[364239891,1749047435869,-430.0,0.00016438,2]
[364239892,1749047435878,-375.36225519,0.00016438,2]
[364239893,1749047435888,-175.11898593,0.00016438,2]
[364239894,1749047435898,-430.0,0.00016438,2]
[364239895,1749047435909,-435.2764476,0.00016438,2]
[364239896,1749047435919,-373.99555661,0.00016438,2]
[364239897,1749047435930,-430.0,0.00016438,2]
[364239898,1749047435939,-430.0,0.00016438,2]
[364239899,1749047435949,-430.0,0.00016438,2]
[364239900,1749047435958,-430.0,0.00016438,2]
[364239901,1749047435966,-430.0,0.00016438,2]
[364239902,1749047435975,-464.27381962,0.00016438,2]
[364239903,1749047435983,-430.0,0.00016438,2]
[364239904,1749047435992,-440.0,0.00016438,2]
[364239905,1749047436001,-430.0,0.00016438,2]
[364239906,1749047436010,-430.0,0.00016438,2]
[364239907,1749047436019,-375.86379841,0.00016438,2]
[364239908,1749047436028,-403.28649823,0.00016438,2]
[364239909,1749047436036,-375.30368883,0.00016438,2]
[364239910,1749047436044,-440.0,0.00016438,2]
[364239911,1749047436053,-300.0,0.00016438,2]
[364239912,1749047436062,-402.84952815,0.00016438,2]
[364239913,1749047436071,-440.0,0.00016438,2]
[364239914,1749047436081,-440.0,0.00016438,2]
[364239915,1749047436090,-430.0,0.00016438,2]
[364239916,1749047436101,-440.0,0.00016438,2]
[364239917,1749047436111,-430.0,0.00016438,2]
[364239918,1749047436120,-381.04863351,0.00016438,2]
[364239919,1749047436131,-430.0,0.00016438,2]
[364239920,1749047436142,-380.25847565,0.00016438,2]
[364239921,1749047436152,-430.0,0.00016438,2]
[364239922,1749047436162,-440.0,0.00016438,2]
[364239923,1749047436171,-430.0,0.00016438,2]
[364239924,1749047436181,-373.43715074,0.00016438,2]
[364239925,1749047436191,-375.6893857,0.00016438,2]
[364239926,1749047436200,-519.40159966,0.00016438,2]
[364239927,1749047436210,-440.0,0.00016438,2]
[364239928,1749047436219,-380.43534274,0.00016438,2]
[364239929,1749047436230,-440.0,0.00016438,2]
[364239930,1749047436240,-440.0,0.00016438,2]
[364239931,1749047436249,-215.58156657,0.00016438,2]
[364239932,1749047436259,-431.7247267,0.00016438,2]
[364239933,1749047436269,-427.0730036,0.00016438,2]
[364239934,1749047436279,-500.0,0.00016438,2]
[364239935,1749047436289,-440.0,0.00016438,2]
[364239936,1749047436299,-500.0,0.00016438,2]
[364239937,1749047436309,-500.0,0.00016438,2]
[364239938,1749047436319,-370.0,0.00016438,2]
[364239939,1749047436329,-376.4716147,0.00016438,2]
[364239940,1749047436340,-440.0,0.00016438,2]
[364239941,1749047436350,-375.95946573,0.00016438,2]
[364239942,1749047436361,-430.16291856,0.00016438,2]
[364239943,1749047436370,-423.43900655,0.00016438,2]
[364239944,1749047436380,-430.0,0.00016438,2]
[364239945,1749047436390,-383.81248684,0.00016438,2]
[364239946,1749047436399,-440.0,0.00016438,2]
[364239947,1749047436409,-230.72756774,0.00016438,2]
[364239948,1749047436418,-440.0,0.00016438,2]
[364239949,1749047436428,-440.0,0.00016438,2]
[364239950,1749047436437,-430.0,0.00016438,2]
[364239951,1749047436447,-440.0,0.00016438,2]
[364239952,1749047436456,-440.0,0.00016438,2]
[364239953,1749047436466,-430.0,0.00016438,2]
[364239954,1749047436475,-440.0,0.00016438,2]
[364239955,1749047436485,-277.67708074,0.00016438,2]
[364239956,1749047436495,-477.97749469,0.00016438,2]
[364239957,1749047436504,-440.0,0.00016438,2]
[364239958,1749047436514,-372.78547495,0.00016438,2]
[364239959,1749047436524,-430.0,0.00016438,2]
[364239960,1749047436533,-377.32057026,0.00016438,2]
[364239961,1749047436543,-385.53724638,0.00016438,2]
[364239962,1749047436553,-376.4821443,0.00016438,2]
[364239963,1749047436562,-440.0,0.00016438,2]
[364239964,1749047436572,-440.0,0.00016438,2]
[364239965,1749047436581,-440.0,0.00016438,2]
[364239966,1749047436592,-440.0,0.00016438,2]
[364239967,1749047436602,-376.04102151,0.00016438,2]
[364239968,1749047436612,-440.0,0.00016438,2]
[364239969,1749047436621,-376.79335721,0.00016438,2]
[364239970,1749047436631,-440.0,0.00016438,2]
[364239971,1749047436640,-349.44075123,0.00016438,2]
[364239972,1749047436654,-440.0,0.00016438,2]
[364239973,1749047436663,-500.0,0.00016438,2]
[364239974,1749047436673,-440.0,0.00016438,2]
[364239975,1749047436684,-440.0,0.00016438,2]
[364239976,1749047436695,-440.0,0.00016438,2]
[364239977,1749047436704,-412.88230758,0.00016438,2]
[364239978,1749047436715,-440.0,0.00016438,2]
[364239979,1749047436725,-440.0,0.00016438,2]
[364239980,1749047436734,-245.97558921,0.00016438,2]
[364239981,1749047436744,-440.0,0.00016438,2]
[364239982,1749047436753,-374.98558133,0.00016438,2]
[364239983,1749047436763,-440.0,0.00016438,2]
[364239984,1749047436772,-440.0,0.00016438,2]
[364239985,1749047436782,-440.0,0.00016438,2]
[364239986,1749047436791,-540.0,0.00016438,2]
[364239987,1749047436800,-440.0,0.00016438,2]
[364239988,1749047436810,-440.0,0.00016438,2]
[364239989,1749047436819,-374.67780047,0.00016438,2]
[364239990,1749047436828,-378.91041067,0.00016438,2]
[364239991,1749047436838,-440.0,0.00016438,2]
[364239992,1749047436847,-440.0,0.00016438,2]
[364239993,1749047436857,-440.0,0.00016438,2]
[364239994,1749047436866,-166.62404177,0.00016438,2]
[364239995,1749047436875,-440.0,0.00016438,2]
[364239996,1749047436885,-440.0,0.00016438,2]
[364239997,1749047436894,-440.0,0.00016438,2]
[364239998,1749047436903,-440.0,0.00016438,2]
[364239999,1749047436924,-362.91297158,0.00016438,2]
[364240000,1749047436936,-324.71540448,0.00016438,2]
[364240001,1749047436946,-440.0,0.00016438,2]
[364240002,1749047436956,-440.0,0.00016438,2]
[364240003,1749047436966,-440.0,0.00016438,2]
[364240004,1749047436976,-380.65226676,0.00016438,2]
[364240005,1749047436986,-2160.74,0.00016438,2]
[364240006,1749047436996,-440.0,0.00016438,2]
[364240007,1749047437006,-500.0,0.00016438,2]
[364240008,1749047437016,-500.0,0.00016438,2]
[364240009,1749047437026,-500.0,0.00016438,2]
[364240010,1749047437036,-500.0,0.00016438,2]
[364240011,1749047437046,-375.05593713,0.00016438,2]
[364240012,1749047437056,-500.0,0.00016438,2]
[364240013,1749047437066,-423.26750811,0.00016438,2]
[364240014,1749047437076,-500.0,0.00016438,2]
[364240015,1749047437224,-500.0,0.00016438,2]
[364240016,1749047437235,-400.0,0.00016438,2]
[364240017,1749047437245,-430.0,0.00016438,2]
[364240018,1749047437255,-400.63538985,0.00016438,2]
[364240019,1749047437264,-440.0,0.00016438,2]
[364240020,1749047437273,-440.0,0.00016438,2]
[364240021,1749047437283,-440.0,0.00016438,2]
[364240022,1749047437292,-440.0,0.00016438,2]
[364240023,1749047437302,-440.0,0.00016438,2]
[364240024,1749047437312,-439.29303697,0.00016438,2]
[364240025,1749047437322,-404.37716836,0.00016438,2]
[364240026,1749047437332,-373.03213656,0.00016438,2]
[364240027,1749047437343,-440.0,0.00016438,2]
[364240028,1749047437353,-440.0,0.00016438,2]
[364240029,1749047437363,-377.46752537,0.00016438,2]
[364240030,1749047437373,-440.0,0.00016438,2]
[364240031,1749047437384,-430.75564049,0.00016438,2]
[364240032,1749047437394,-440.0,0.00016438,2]
[364240033,1749047437404,-440.0,0.00016438,2]
[364240034,1749047437414,-440.0,0.00016438,2]
[364240035,1749047437424,-440.0,0.00016438,2]
[364240036,1749047437434,-270.67325098,0.00016438,2]
[364240037,1749047437445,-440.0,0.00016438,2]
[364240038,1749047437455,-440.0,0.00016438,2]
[364240039,1749047437465,-375.39438031,0.00016438,2]
[364240040,1749047437475,-1722.31,0.00016438,2]
[364240041,1749047437485,-430.0,0.00016438,2]
[364240042,1749047437500,-440.0,0.00016438,2]
[364240043,1749047437510,-352.64420861,0.00016438,2]
[364240044,1749047437520,-440.0,0.00016438,2]
[364240045,1749047437531,-440.0,0.00016438,2]
[364240046,1749047437541,-440.0,0.00016438,2]